[Event "GER-ch Youth U16W 2020"]
[Site "Willingen"]
[Date "2020.10.21"]
[Round "2.2"]
[White "Schnabel, Luise"]
[Black "Heutling, Elina"]
[Result "1/2-1/2"]
[ECO "C68"]
[WhiteElo "1867"]
[BlackElo "1873"]
[Annotator "NA RC"]
[PlyCount "78"]
[EventDate "2020.10.20"]
[EventType "swiss"]
[EventRounds "7"]
[EventCountry "GER"]
[SourceTitle "playchess.com"]
[Source "ChessBase"]
[SourceQuality "1"]
[TimeControl "40/5400+30:1800+30"]

{[%evp 13,74,0,19,12,40,-52,-27,-37,-18,-50,-13,-18,-13,-19,30,34,30,22,24,14,32767,47,75,39,46,31,86,104,94,65,99,58,64,35,32767,37,29,37,32767,29,42,32767,32767,32767,51,-10,32767,32767,32767,32767,32767,32767,32767,32767,71,0,0,0,0,0,0,0,0]} 1. e4 {[%emt 0:00:00]} e5 {[%emt 0:00:00]} 2. Nf3 {[%emt 0:00:00]} Nc6 {[%emt 0:00:00]} 3. Bb5 {[%emt 0:00:00]} a6 {[%emt 0:00:06]} 4. Bxc6 {[%emt 0:00:41]} dxc6 {[%emt 0:00:09]} 5. O-O {[%emt 0:00:17]} Qf6 {[%emt 0:00:35]} 6. d3 {[%emt 0:02:33] C68: Ruy Lopez: Exchange Variation, sidelines.} Ne7 {[%emt 0:03:36]} 7. Nbd2 {[%emt 0:03:39]} Bg4 {[%emt 0:09:33]} 8. h3 {[%emt 0:01:53]} Bh5 {[%emt 0:02:39]} ({Better is} 8... h5 $11) 9. Nc4 {[%emt 0:03:37]} (9. b4 $14) 9... Bxf3 $1 {[%emt 0:02:38]} 10. Qxf3 {[%emt 0:00:10]} Qxf3 {[%emt 0:00:18]} 11. gxf3 {[%emt 0:00:11]} Ng6 {[%emt 0:00:32] [#]} 12. Rd1 $146 {[%emt 0:02:47]} ({Predecessor:} 12. Be3 f6 13. Rfd1 c5 14. Kf1 Bd6 15. Ke2 Kf7 16. c3 b6 17. Rac1 Rhd8 18. d4 exd4 19. cxd4 {1-0 (31) Meijers,V (2512)-Erker,T (2135) Forchtenberg 2003}) 12... O-O-O {[%emt 0:01:50]} 13. Kf1 {[%emt 0:03:12]} b5 {[%emt 0:11:37]} 14. Na5 {[%emt 0:02:48]} Rd6 {[%emt 0:04:13]} 15. Ke2 {[%emt 0:05:39]} Be7 {[%emt 0:06:12]} 16. Be3 {[%emt 0:03:34]} Rhd8 {[%emt 0:01:51]} 17. Rg1 {[%emt 0:03:37]} Bf8 {[%emt 0:06:26]} 18. Rad1 {[%emt 0:06:55]} h6 {[%emt 0:06:48]} 19. c3 {[%emt 0:06:32]} Nf4+ {[%emt 0:09:10]} (19... c5 $1 $11) 20. Bxf4 $1 {[%emt 0:01:53]} exf4 {[%emt 0:00:04]} 21. Nb3 {[%emt 0:05:39]} Kb7 {[%emt 0:03:27]} 22. Rg4 {[%emt 0:03:50]} g5 {[%emt 0:01:32]} 23. Nd4 {[%emt 0:03:00]} c5 {[%emt 0:08:38]} 24. Nf5 {[%emt 0:01:12]} Rb6 {[%emt 0:03:23]} 25. h4 {[%emt 0:02:54]} f6 {[%emt 0:02:15]} 26. d4 {[%emt 0:12:57]} b4 {[%emt 0:06:56]} 27. Rgg1 {[%emt 0:10:20]} a5 {[%emt 0:05:13]} 28. h5 {[%emt 0:05:06]} c4 {[%emt 0:02:18]} 29. Rd2 {[%emt 0:02:18]} Ka7 {[%emt 0:01:02]} 30. Rgd1 {[%emt 0:03:24]} Rdb8 {[%emt 0:00:53]} 31. d5 {[%emt 0:00:41]} bxc3 {[%emt 0:00:16]} 32. bxc3 {[%emt 0:00:02]} Rb2 {[%emt 0:00:27]} 33. Nd4 {[%emt 0:01:01]} Ka6 {[%emt 0:00:39]} (33... Rxd2+ $11 34. Rxd2 Rb1) 34. Nc6 {[%emt 0:01:32]} ({White should play} 34. a4 $1 $14) 34... Rxd2+ {[%emt 0:00:08]} 35. Rxd2 {[%emt 0:00:11]} Rb1 {[%emt 0:01:17]} 36. Rd1 {[%emt 0:01:15]} Rb2+ {[%emt 0:00:11]} 37. Rd2 {[%emt 0:00:12]} Rb1 $11 {[%emt 0:00:48]} 38. Rd1 {[%emt 0:00:28]} Rb2+ {[%emt 0:00:35]} 39. Rd2 {[%emt 0:00:26]} Rb1 {[%emt 0:00:36]} 1/2-1/2

[Event "GER-ch Youth U16W 2020"]
[Site "Willingen"]
[Date "2020.10.21"]
[Round "2.4"]
[White "Rudolph, Eva"]
[Black "Reuter, Elisa"]
[Result "1/2-1/2"]
[ECO "B35"]
[WhiteElo "1836"]
[BlackElo "1860"]
[Annotator "NA RC"]
[PlyCount "105"]
[EventDate "2020.10.20"]
[EventType "swiss"]
[EventRounds "7"]
[EventCountry "GER"]
[SourceTitle "playchess.com"]
[Source "ChessBase"]
[SourceQuality "1"]
[TimeControl "40/5400+30:1800+30"]

1. e4 {[%emt 0:00:00]} c5 {[%emt 0:00:00]} 2. Nf3 {[%emt 0:00:00]} Nc6 {[%emt 0:00:00]} 3. d4 {[%emt 0:00:00]} cxd4 {[%emt 0:00:00]} 4. Nxd4 {[%emt 0:00:00]} g6 {[%emt 0:00:00]} 5. Nc3 {[%emt 0:00:08]} Bg7 {[%emt 0:00:00]} 6. Be3 {[%emt 0:00:14]} Nf6 {[%emt 0:00:00]} 7. Bc4 {[%emt 0:00:16]} Qa5 {[%emt 0:00:00]} 8. O-O {[%emt 0:00:56]} O-O {[%emt 0:00:03]} 9. Bb3 {[%emt 0:00:25]} d6 {[%emt 0:00:07]} 10. h3 {[%emt 0:00:09]} Bd7 {[%emt 0:00:05]} 11. Re1 {[%emt 0:00:26]} Rac8 {[%emt 0:00:20]} 12. Qd2 {[%emt 0:02:14]} Rfe8 {[%emt 0:25:44]} 13. Rad1 {[%emt 0:02:02] B35: Sicilian: Accelerated Dragon with 5 Nc3: main line.} Nh5 {[%emt 0:07:43] [#]} 14. Nd5 $146 {[%emt 0:15:40]} ({Predecessor:} 14. a3 Nxd4 15. Bxd4 Bc6 16. Qe3 Bxd4 17. Rxd4 Qe5 18. Nd5 Bxd5 19. exd5 Qxe3 20. Rxe3 Kf8 {½-½ (28) Bergmann,M (2457)-Noire,E (2393) LSS email 2010}) 14... Qxd2 {[%emt 0:02:28]} 15. Rxd2 {[%emt 0:01:10]} Nxd4 {[%emt 0:02:00]} 16. Bxd4 {[%emt 0:00:23]} Bxd4 {[%emt 0:01:05]} 17. Rxd4 {[%emt 0:00:12]} Bc6 {[%emt 0:02:24]} 18. c3 {[%emt 0:09:37]} Ng7 {[%emt 0:03:03]} 19. Nb4 {[%emt 0:06:09]} Red8 {[%emt 0:09:57]} 20. e5 {[%emt 0:13:06]} Nf5 {[%emt 0:01:49]} 21. Rdd1 {[%emt 0:14:26]} e6 {[%emt 0:09:01]} 22. Bc2 {[%emt 0:08:54]} a5 {[%emt 0:02:30]} 23. Nxc6 {[%emt 0:06:47]} Rxc6 {[%emt 0:00:10]} 24. Bxf5 {[%emt 0:00:48]} gxf5 {[%emt 0:01:20]} 25. Rd4 {[%emt 0:01:11]} d5 {[%emt 0:01:42]} 26. Red1 {[%emt 0:00:58]} Rdc8 {[%emt 0:00:50]} 27. Kf1 {[%emt 0:01:16]} Rc4 {[%emt 0:03:44]} 28. Ke2 {[%emt 0:01:11]} Kf8 {[%emt 0:00:10]} 29. Ke3 {[%emt 0:11:10]} Ke7 {[%emt 0:00:33]} 30. Rxc4 {[%emt 0:00:51]} Rxc4 {[%emt 0:00:08]} 31. Rd4 $1 {[%emt 0:00:10]} Rxd4 {[%emt 0:01:27]} 32. Kxd4 {[%emt 0:00:06]} Kd7 {[%emt 0:01:30]} 33. Kc5 {[%emt 0:01:26]} Kc7 {[%emt 0:00:13]} 34. b4 {[%emt 0:02:24]} axb4 $1 {[%emt 0:01:10]} 35. Kxb4 {[%emt 0:01:17]} (35. c4 $16) 35... Kc6 {[%emt 0:01:04]} 36. a4 {[%emt 0:00:32]} b6 {[%emt 0:01:03]} 37. f4 {[%emt 0:01:02]} h5 {[%emt 0:00:41]} 38. h4 {[%emt 0:00:14]} Kc7 {[%emt 0:01:05]} 39. Kb5 {[%emt 0:00:27]} Kb7 {[%emt 0:00:23]} 40. a5 {[%emt 0:00:50]} bxa5 {[%emt 0:00:11]} 41. Kxa5 {[%emt 0:30:38]} Ka7 {[%emt 0:31:43]} 42. Kb5 {[%emt 0:00:00]} Kb7 {[%emt 0:00:00]} 43. Kc5 {[%emt 0:00:00]} Kc7 {[%emt 0:00:00]} 44. g3 {[%emt 0:00:00]} Kd7 {[%emt 0:00:00]} 45. Kb6 {[%emt 0:00:00]} Kd8 {[%emt 0:00:00]} 46. Kb7 {[%emt 0:00:00]} Kd7 {[%emt 0:00:00]} 47. Kb6 {[%emt 0:00:00]} Kd8 {[%emt 0:00:00]} 48. Kc6 {[%emt 0:00:00]} Kc8 {[%emt 0:00:00]} 49. Kd6 {[%emt 0:00:00]} Kd8 {[%emt 0:00:00]} 50. Kc5 {[%emt 0:00:00]} Kc7 {[%emt 0:00:00]} 51. c4 {[%emt 0:00:00]} dxc4 $11 {[%emt 0:00:00]} 52. Kd4 {[%emt 0:00:00]} Kb6 {[%emt 0:00:00]} 53. Kxc4 {[%emt 0:00:00]} 1/2-1/2

[Event "GER-ch Youth U16W 2020"]
[Site "Willingen"]
[Date "2020.10.21"]
[Round "2.5"]
[White "Bardorz, Jana"]
[Black "Basovskiy, Jana"]
[Result "1-0"]
[ECO "B40"]
[WhiteElo "1960"]
[BlackElo "1760"]
[Annotator "RC"]
[PlyCount "67"]
[EventDate "2020.10.20"]
[EventType "swiss"]
[EventRounds "7"]
[EventCountry "GER"]
[SourceTitle "playchess.com"]
[Source "ChessBase"]
[SourceQuality "1"]
[TimeControl "40/5400+30:1800+30"]

1. e4 {[%emt 0:00:00]} c5 {[%emt 0:00:00]} 2. Nf3 {[%emt 0:00:00]} e6 {[%emt 0:00:00]} 3. d4 {[%emt 0:00:00]} cxd4 {[%emt 0:00:00]} 4. Nxd4 {[%emt 0:00:00]} Nf6 {[%emt 0:00:00]} 5. Nc3 {[%emt 0:00:00]} Nc6 {[%emt 0:00:00]} 6. Ndb5 {[%emt 0:00:21]} Bc5 {[%emt 0:00:03]} 7. Nd6+ {[%emt 0:04:58]} Ke7 {[%emt 0:00:12]} 8. Bf4 {[%emt 0:02:18]} e5 {[%emt 0:00:22]} 9. Nf5+ {[%emt 0:00:45]} Kf8 {[%emt 0:00:40]} 10. Bg5 {[%emt 0:03:34]} Bb4 {[%emt 0:03:10]} 11. Bc4 {[%emt 0:14:05]} h6 {[%emt 0:17:07]} 12. Bxf6 {[%emt 0:03:38]} Qxf6 {[%emt 0:00:29]} 13. Ne3 {[%emt 0:06:08]} Bxc3+ {[%emt 0:08:34]} 14. bxc3 {[%emt 0:00:10]} d6 {[%emt 0:03:12]} 15. O-O {[%emt 0:03:53]} Bd7 {[%emt 0:06:46]} 16. Rb1 {[%emt 0:08:34]} b6 {[%emt 0:05:55]} 17. Qd3 {[%emt 0:07:15]} Rd8 {[%emt 0:07:10]} 18. Bd5 {[%emt 0:03:36]} Ne7 {[%emt 0:08:39]} 19. Kh1 {[%emt 0:05:51]} Be6 {[%emt 0:08:06]} 20. a4 {[%emt 0:06:36]} h5 {[%emt 0:13:28]} 21. a5 {[%emt 0:08:51]} bxa5 {[%emt 0:06:22]} 22. f3 {[%emt 0:02:16]} g5 {[%emt 0:03:02]} 23. Rb7 {[%emt 0:02:04]} Ng6 {[%emt 0:02:46]} 24. Rxa7 {[%emt 0:00:51]} Nf4 {[%emt 0:00:46]} 25. Qd2 {[%emt 0:01:11]} Qh6 {[%emt 0:03:55]} 26. Nf5 {[%emt 0:02:19]} Qf6 {[%emt 0:00:43]} 27. c4 {[%emt 0:03:46]} g4 {[%emt 0:01:04]} 28. Qxa5 {[%emt 0:02:40]} Nxd5 {[%emt 0:00:39]} 29. cxd5 {[%emt 0:01:16]} Bxf5 {[%emt 0:00:01]} 30. fxg4 {[%emt 0:04:10]} hxg4 {[%emt 0:01:05]} 31. Rxf5 {[%emt 0:00:58]} Rxh2+ {[%emt 0:00:35]} 32. Kxh2 {[%emt 0:00:57]} Qh4+ {[%emt 0:00:00]} 33. Kg1 {[%emt 0:00:21]} Rb8 {[%emt 0:01:08]} 34. Rfxf7+ {[%emt 0:01:17]} 1-0

[Event "GER-ch Youth U16W 2020"]
[Site "Willingen"]
[Date "2020.10.21"]
[Round "2.6"]
[White "Falke, Ornella"]
[Black "Yue, Qizhou"]
[Result "0-1"]
[ECO "B28"]
[WhiteElo "1500"]
[BlackElo "1775"]
[Annotator "NA RC"]
[PlyCount "102"]
[EventDate "2020.10.20"]
[EventType "swiss"]
[EventRounds "7"]
[EventCountry "GER"]
[SourceTitle "playchess.com"]
[Source "ChessBase"]
[SourceQuality "1"]
[TimeControl "40/5400+30:1800+30"]

1. e4 {[%emt 0:00:00]} c5 {[%emt 0:00:00]} 2. Nf3 {[%emt 0:00:00]} a6 {[%emt 0:00:00]} 3. c4 {[%emt 0:06:46]} Nc6 {[%emt 0:00:09]} 4. d4 {[%emt 0:01:19]} cxd4 {[%emt 0:00:11]} 5. Nxd4 {[%emt 0:00:08]} e5 {[%emt 0:00:22]} 6. Nc2 {[%emt 0:02:17]} Nf6 {[%emt 0:02:20]} 7. Nc3 {[%emt 0:03:41]} Bc5 {[%emt 0:04:08]} 8. Bg5 {[%emt 0:04:24]} h6 {[%emt 0:02:40]} 9. Bh4 {[%emt 0:01:42]} d6 {[%emt 0:03:49]} 10. Be2 {[%emt 0:07:29]} Be6 {[%emt 0:05:01]} 11. O-O {[%emt 0:07:39]} g5 {[%emt 0:05:30]} 12. Bg3 {[%emt 0:00:43]} Nd4 {[%emt 0:15:59]} 13. Bd3 {[%emt 0:13:48]} Rc8 {[%emt 0:14:21]} 14. Ne3 {[%emt 0:01:13]} h5 {[%emt 0:09:35]} 15. h4 {[%emt 0:07:39]} Ng4 {[%emt 0:01:08]} 16. Nf5 {[%emt 0:07:48]} Bxf5 {[%emt 0:02:21]} 17. exf5 {[%emt 0:00:16]} gxh4 {[%emt 0:00:36]} 18. Bh2 {[%emt 0:01:01]} Rg8 {[%emt 0:02:46]} 19. Be4 {[%emt 0:04:40]} Nc6 {[%emt 0:02:49]} 20. Qd3 {[%emt 0:01:34]} Qb6 {[%emt 0:03:48]} 21. Qd2 {[%emt 0:04:31]} Nf6 {[%emt 0:02:49]} 22. Qh6 {[%emt 0:06:19]} Bxf2+ {[%emt 0:02:40]} 23. Kh1 {[%emt 0:08:19]} Ng4 {[%emt 0:00:34]} 24. Qh7 {[%emt 0:00:21]} Kf8 {[%emt 0:12:32]} 25. Nd5 {[%emt 0:02:35]} Qd8 {[%emt 0:00:25]} 26. f6 {[%emt 0:01:12]} Bd4 {[%emt 0:01:57]} 27. Qxh5 {[%emt 0:01:47]} Nf2+ {[%emt 0:00:47]} 28. Rxf2 {[%emt 0:00:45]} Bxf2 {[%emt 0:00:07]} 29. Qh6+ {[%emt 0:00:34]} Ke8 {[%emt 0:00:15]} 30. Bh7 {[%emt 0:02:14]} Rf8 {[%emt 0:01:23]} 31. Rf1 {[%emt 0:00:47]} Bd4 {[%emt 0:02:14]} 32. Qxh4 {[%emt 0:00:16]} Bc5 {[%emt 0:01:20]} 33. Rf3 {[%emt 0:01:01]} Nd4 {[%emt 0:00:38]} 34. Rg3 {[%emt 0:00:53]} Ne6 {[%emt 0:00:10]} 35. Ne7 {[%emt 0:00:26]} Bf2 {[%emt 0:00:58]} 36. Nxc8 {[%emt 0:01:12]} Bxg3 {[%emt 0:00:13]} 37. Bxg3 {[%emt 0:00:00]} Qxc8 {[%emt 0:00:19]} 38. Bf5 {[%emt 0:00:19]} Kd8 {[%emt 0:00:57]} 39. Qh6 {[%emt 0:00:14]} Kc7 {[%emt 0:00:25]} 40. Qd2 {[%emt 0:00:40]} Rh8+ {[%emt 0:00:36]} 41. Kg1 {[%emt 0:30:24]} Qd8 {[%emt 0:03:32]} 42. Qd5 {[%emt 0:00:00]} Qxf6 {[%emt 0:02:38]} 43. Be4 {[%emt 0:00:00]} Nc5 {[%emt 0:00:56]} 44. Bf3 {[%emt 0:00:00]} Qe6 {[%emt 0:05:03]} 45. b4 {[%emt 0:00:00]} Qxd5 {[%emt 0:00:12]} 46. Bxd5 {[%emt 0:00:00]} Nd3 {[%emt 0:01:20]} 47. Bxf7 {[%emt 0:00:00]} Nxb4 {[%emt 0:00:18]} 48. Be1 {[%emt 0:00:00]} Nd3 {[%emt 0:01:53]} 49. Bc3 {[%emt 0:00:00]} Rf8 {[%emt 0:02:19]} 50. Bg6 {[%emt 0:00:00]} Nf4 {[%emt 0:00:22]} 51. Ba5+ {[%emt 0:00:00]} b6 {[%emt 0:00:09]} 0-1

[Event "GER-ch Youth U16W 2020"]
[Site "Willingen"]
[Date "2020.10.21"]
[Round "2.7"]
[White "Cheredzhiyska, Iva"]
[Black "Schwegler, Jelena"]
[Result "1-0"]
[ECO "B34"]
[WhiteElo "1674"]
[BlackElo "1539"]
[Annotator "NA RC"]
[PlyCount "47"]
[EventDate "2020.10.20"]
[EventType "swiss"]
[EventRounds "7"]
[EventCountry "GER"]
[SourceTitle "playchess.com"]
[Source "ChessBase"]
[SourceQuality "1"]
[TimeControl "40/5400+30:1800+30"]

1. e4 {[%emt 0:00:00]} c5 {[%emt 0:00:00]} 2. Nf3 {[%emt 0:00:00]} g6 {[%emt 0:00:00]} 3. d4 {[%emt 0:01:04]} cxd4 {[%emt 0:00:00]} 4. Nxd4 {[%emt 0:05:12]} Nc6 {[%emt 0:00:04]} 5. Nxc6 {[%emt 0:11:11]} bxc6 {[%emt 0:00:30]} 6. Nc3 {[%emt 0:02:17]} Bg7 {[%emt 0:00:59]} 7. Bd3 {[%emt 0:02:49]} e6 {[%emt 0:06:35]} 8. O-O {[%emt 0:04:16]} Nf6 {[%emt 0:03:03]} 9. Kh1 {[%emt 0:10:24]} d5 {[%emt 0:02:07]} 10. e5 {[%emt 0:02:58]} Nd7 {[%emt 0:00:50]} 11. f4 {[%emt 0:01:35]} O-O {[%emt 0:00:44]} 12. Qe2 {[%emt 0:04:19]} Rb8 {[%emt 0:07:26]} 13. b3 {[%emt 0:02:37]} Re8 {[%emt 0:26:09]} 14. Ba3 {[%emt 0:03:48]} f6 {[%emt 0:02:42]} 15. Bd6 {[%emt 0:02:02]} Ra8 {[%emt 0:00:50]} 16. Rae1 {[%emt 0:05:04]} fxe5 {[%emt 0:03:15]} 17. fxe5 {[%emt 0:01:09]} Qa5 {[%emt 0:01:05]} 18. Qf3 {[%emt 0:06:32]} Qd8 {[%emt 0:04:27]} 19. Qf7+ {[%emt 0:04:30]} Kh8 {[%emt 0:00:13]} 20. Bxg6 {[%emt 0:02:17]} hxg6 {[%emt 0:00:36]} 21. Rf3 {[%emt 0:01:41]} Nf8 {[%emt 0:00:32]} 22. Bxf8 {[%emt 0:00:43]} Rxf8 {[%emt 0:00:05]} 23. Rh3+ {[%emt 0:00:16]} Bh6 {[%emt 0:00:05]} 24. Rxh6# 1-0

[Event "GER-ch Youth U16W 2020"]
[Site "Willingen"]
[Date "2020.10.21"]
[Round "2.8"]
[White "Jacoby, Angelina"]
[Black "Schneider, Katharina"]
[Result "0-1"]
[ECO "A05"]
[WhiteElo "1630"]
[BlackElo "1779"]
[Annotator "NA RC"]
[PlyCount "96"]
[EventDate "2020.10.20"]
[EventType "swiss"]
[EventRounds "7"]
[EventCountry "GER"]
[SourceTitle "playchess.com"]
[Source "ChessBase"]
[SourceQuality "1"]
[TimeControl "40/5400+30:1800+30"]

1. Nf3 {[%emt 0:00:05]} Nf6 {[%emt 0:00:06]} 2. g3 {[%emt 0:00:24]} d5 {[%emt 0:02:36]} 3. Bg2 {[%emt 0:00:42]} c5 {[%emt 0:03:12]} 4. c4 {[%emt 0:16:28]} e6 {[%emt 0:02:41]} 5. O-O {[%emt 0:07:03]} Nc6 {[%emt 0:04:13]} 6. d3 {[%emt 0:02:50]} Be7 {[%emt 0:05:01]} 7. b3 {[%emt 0:04:40]} O-O {[%emt 0:02:54]} 8. Bb2 {[%emt 0:00:07]} d4 {[%emt 0:02:30]} 9. e3 {[%emt 0:05:20]} e5 {[%emt 0:05:47]} 10. e4 {[%emt 0:04:48]} Ne8 {[%emt 0:10:57]} 11. Re1 {[%emt 0:04:23]} Qc7 {[%emt 0:03:44]} 12. Qe2 {[%emt 0:05:31]} a5 {[%emt 0:07:03]} 13. Na3 {[%emt 0:00:58]} Na7 {[%emt 0:03:39]} 14. Bc1 {[%emt 0:05:29]} Bd6 {[%emt 0:03:44]} 15. Bd2 {[%emt 0:18:17]} Bd7 {[%emt 0:01:51]} 16. Ng5 {[%emt 0:04:02]} f6 {[%emt 0:02:43]} 17. Nf3 {[%emt 0:02:09]} Rb8 {[%emt 0:03:28]} 18. Rab1 {[%emt 0:01:47]} b6 {[%emt 0:01:43]} 19. Kh1 {[%emt 0:02:54]} Qc8 {[%emt 0:01:13]} 20. Kg1 {[%emt 0:01:32]} Nc7 {[%emt 0:01:51]} 21. Nh4 {[%emt 0:01:06]} Na6 {[%emt 0:01:58]} 22. Rf1 {[%emt 0:05:00]} Nb4 {[%emt 0:01:22]} 23. Rb2 {[%emt 0:00:29]} g5 {[%emt 0:09:28]} 24. Nf3 {[%emt 0:00:28]} Bg4 {[%emt 0:03:13]} 25. Bc1 {[%emt 0:02:13]} h6 {[%emt 0:02:36]} 26. Qd2 {[%emt 0:01:50]} Kf7 {[%emt 0:02:39]} 27. h4 {[%emt 0:00:24]} Rh8 {[%emt 0:01:16]} 28. Nh2 {[%emt 0:00:40]} gxh4 {[%emt 0:01:36]} 29. gxh4 {[%emt 0:00:41]} Bh3 {[%emt 0:01:24]} 30. f3 {[%emt 0:01:24]} Bxg2 {[%emt 0:02:48]} 31. Kxg2 Rg8+ {[%emt 0:00:20]} 32. Kh1 {[%emt 0:00:33]} Qh3 {[%emt 0:00:23]} 33. Qxh6 {[%emt 0:00:50]} Nxd3 {[%emt 0:00:45]} 34. Qh5+ {[%emt 0:00:42]} Ke6 {[%emt 0:01:39]} 35. Re2 {[%emt 0:00:49]} Rh8 {[%emt 0:01:28]} 36. Qg4+ {[%emt 0:00:24]} Qxg4 {[%emt 0:00:09]} 37. Nxg4 {[%emt 0:00:23]} Rxh4+ {[%emt 0:00:05]} 38. Kg2 {[%emt 0:00:11]} Rg8 {[%emt 0:00:48]} 39. Rd2 {[%emt 0:00:38]} Nf4+ {[%emt 0:01:13]} 40. Kf2 {[%emt 0:00:36]} f5 {[%emt 0:01:43]} 41. exf5+ {[%emt 0:01:48]} Kxf5 {[%emt 0:00:07]} 42. Ke1 {[%emt 0:00:54]} Rgh8 {[%emt 0:02:49]} 43. Rd1 {[%emt 0:04:23]} e4 {[%emt 0:04:14]} 44. Bxf4 {[%emt 0:06:37]} Bxf4 {[%emt 0:01:55]} 45. Nf2 {[%emt 0:00:45]} exf3 {[%emt 0:04:58]} 46. Nd3 {[%emt 0:00:15]} Re8+ {[%emt 0:01:13]} 47. Kf2 {[%emt 0:00:56]} Rh2+ {[%emt 0:00:23]} 48. Kxf3 {[%emt 0:00:31]} Re3# {[%emt 0:00:09]} 0-1

[Event "GER-ch Youth U16W 2020"]
[Site "Willingen"]
[Date "2020.10.21"]
[Round "2.9"]
[White "Pavlov, Liliane"]
[Black "Klahold, Rona"]
[Result "1-0"]
[ECO "D70"]
[WhiteElo "1744"]
[BlackElo "1551"]
[Annotator "NA RC"]
[PlyCount "65"]
[EventDate "2020.10.20"]
[EventType "swiss"]
[EventRounds "7"]
[EventCountry "GER"]
[SourceTitle "playchess.com"]
[Source "ChessBase"]
[SourceQuality "1"]
[TimeControl "40/5400+30:1800+30"]

1. d4 {[%emt 0:00:00]} d5 {[%emt 0:00:00]} 2. c4 {[%emt 0:00:00]} c6 {[%emt 0:00:00]} 3. Nf3 {[%emt 0:00:00]} Nf6 {[%emt 0:00:02]} 4. Nbd2 {[%emt 0:00:37]} Bf5 {[%emt 0:00:58]} 5. Nh4 {[%emt 0:01:22]} Bg6 {[%emt 0:01:53]} 6. Qb3 {[%emt 0:01:17]} Qb6 {[%emt 0:03:28]} 7. Qh3 {[%emt 0:03:17]} Nbd7 {[%emt 0:03:09]} 8. Nxg6 {[%emt 0:01:19]} fxg6 {[%emt 0:00:33]} 9. e3 {[%emt 0:10:02]} Qc7 {[%emt 0:20:25]} 10. Bd3 {[%emt 0:08:09]} e5 {[%emt 0:04:37]} 11. Bxg6+ {[%emt 0:18:05]} Kd8 {[%emt 0:14:03]} 12. O-O {[%emt 0:17:30]} Qd6 {[%emt 0:10:39]} 13. c5 {[%emt 0:02:58]} Qe7 {[%emt 0:00:46]} 14. Bd3 {[%emt 0:04:43]} Kc7 {[%emt 0:05:54]} 15. b4 {[%emt 0:00:31]} e4 {[%emt 0:03:31]} 16. Be2 {[%emt 0:00:23]} b6 {[%emt 0:02:23]} 17. Qg3+ {[%emt 0:05:20]} Kd8 {[%emt 0:01:27]} 18. a4 {[%emt 0:00:48]} Qe6 {[%emt 0:01:56]} 19. Ba3 {[%emt 0:03:16]} bxc5 {[%emt 0:03:16]} 20. bxc5 {[%emt 0:00:30]} Ke7 {[%emt 0:02:47]} 21. Rac1 {[%emt 0:01:46]} Kf7 {[%emt 0:00:20]} 22. f3 {[%emt 0:00:51]} exf3 {[%emt 0:02:34]} 23. Rxf3 {[%emt 0:00:20]} Be7 {[%emt 0:00:18]} 24. e4 {[%emt 0:03:55]} dxe4 {[%emt 0:00:38]} 25. Bc4 {[%emt 0:00:47]} exf3 {[%emt 0:01:09]} 26. Bxe6+ {[%emt 0:00:06]} Kxe6 {[%emt 0:00:22]} 27. Nxf3 {[%emt 0:03:20]} Kf7 {[%emt 0:02:58]} 28. Ng5+ {[%emt 0:00:19]} Kg6 {[%emt 0:02:20]} 29. h4 {[%emt 0:02:50]} h6 {[%emt 0:02:38]} 30. Qd3+ {[%emt 0:00:25]} Kh5 {[%emt 0:00:27]} 31. Qf5 {[%emt 0:02:57]} Rhg8 {[%emt 0:05:31]} 32. Ne6+ {[%emt 0:02:53]} g5 {[%emt 0:01:54]} 33. Nf4+ {[%emt 0:00:31]} 1-0

[Event "GER-ch Youth U16W 2020"]
[Site "Willingen"]
[Date "2020.10.21"]
[Round "2.10"]
[White "Dohon, Maria-Johanna"]
[Black "Kalina, Lena"]
[Result "0-1"]
[ECO "A49"]
[WhiteElo "1536"]
[BlackElo "1561"]
[Annotator "NA RC"]
[PlyCount "94"]
[EventDate "2020.10.20"]
[EventType "swiss"]
[EventRounds "7"]
[EventCountry "GER"]
[SourceTitle "playchess.com"]
[Source "ChessBase"]
[SourceQuality "1"]
[TimeControl "40/5400+30:1800+30"]

1. d4 {[%emt 0:00:00]} Nf6 {[%emt 0:00:00]} 2. Nf3 {[%emt 0:00:00]} g6 {[%emt 0:00:00]} 3. g3 {[%emt 0:00:00]} Bg7 {[%emt 0:00:00]} 4. Bg2 {[%emt 0:00:00]} O-O {[%emt 0:00:39]} 5. O-O {[%emt 0:00:01]} d6 {[%emt 0:02:01]} 6. b3 {[%emt 0:02:17]} c5 {[%emt 0:06:54]} 7. Bb2 {[%emt 0:02:42]} Nfd7 {[%emt 0:07:07]} 8. Qc1 {[%emt 0:03:32]} Nc6 {[%emt 0:03:25]} 9. dxc5 {[%emt 0:02:26]} Nxc5 {[%emt 0:02:15]} 10. Bxg7 {[%emt 0:02:15]} Kxg7 {[%emt 0:00:12]} 11. Rd1 {[%emt 0:02:27]} Bf5 {[%emt 0:06:12]} 12. Nd4 {[%emt 0:06:46]} Nxd4 {[%emt 0:02:59]} 13. Rxd4 {[%emt 0:00:12]} Qb6 {[%emt 0:04:17]} 14. Qb2 {[%emt 0:04:40]} Kg8 {[%emt 0:01:32]} 15. Na3 {[%emt 0:03:28]} Rac8 {[%emt 0:06:07]} 16. Nc4 {[%emt 0:02:22]} Qc7 {[%emt 0:01:27]} 17. a4 {[%emt 0:06:02]} b6 {[%emt 0:04:20]} 18. f3 {[%emt 0:05:08]} Nb7 {[%emt 0:10:51]} 19. e4 {[%emt 0:07:00]} Be6 {[%emt 0:01:43]} 20. Kh1 {[%emt 0:03:04]} Na5 {[%emt 0:03:01]} 21. Ne3 {[%emt 0:03:49]} Qc3 {[%emt 0:04:56]} 22. Qxc3 {[%emt 0:03:11]} Rxc3 {[%emt 0:00:06]} 23. b4 {[%emt 0:04:55]} Nc6 {[%emt 0:03:01]} 24. Rd3 {[%emt 0:03:36]} Rxd3 {[%emt 0:00:58]} 25. cxd3 {[%emt 0:00:08]} Nxb4 {[%emt 0:00:44]} 26. Bf1 {[%emt 0:02:17]} Rc8 {[%emt 0:03:20]} 27. Nc4 {[%emt 0:02:48]} Nc2 {[%emt 0:12:23]} 28. Rb1 {[%emt 0:02:51]} Rc5 {[%emt 0:03:48]} 29. Rb5 {[%emt 0:02:40]} Rxb5 {[%emt 0:01:51]} 30. axb5 {[%emt 0:00:09]} Bd7 {[%emt 0:00:14]} 31. Kg1 {[%emt 0:01:53]} Bxb5 {[%emt 0:00:32]} 32. Kf2 {[%emt 0:00:31]} Bc6 {[%emt 0:04:24]} 33. Be2 {[%emt 0:01:30]} Nb4 {[%emt 0:01:52]} 34. Nb2 {[%emt 0:00:31]} b5 {[%emt 0:01:02]} 35. Bd1 {[%emt 0:00:32]} a5 {[%emt 0:00:21]} 36. Ke3 {[%emt 0:01:02]} a4 {[%emt 0:00:23]} 37. Nxa4 {[%emt 0:02:03]} bxa4 {[%emt 0:00:07]} 38. Kd2 {[%emt 0:01:59]} a3 {[%emt 0:00:58]} 39. Bb3 {[%emt 0:00:35]} a2 {[%emt 0:00:10]} 40. Bxa2 {[%emt 0:00:26]} Nxa2 {[%emt 0:00:07]} 41. Ke3 {[%emt 0:30:21]} Kg7 {[%emt 0:32:26]} 42. f4 {[%emt 0:00:12]} Nb4 {[%emt 0:00:00]} 43. h3 {[%emt 0:00:00]} e5 {[%emt 0:00:00]} 44. fxe5 {[%emt 0:00:00]} dxe5 {[%emt 0:00:00]} 45. d4 {[%emt 0:00:00]} Nc2+ {[%emt 0:00:00]} 46. Kd3 {[%emt 0:00:00]} Nxd4 {[%emt 0:00:00]} 47. g4 {[%emt 0:00:00]} Nf3 {[%emt 0:00:00]} 0-1